bitfinex/quotes_ETHUSD_20241123
["timestamp","ask_amount","ask_price","bid_price","bid_amount"]
[1732398642276,2.92448,3419.4,3419.3,0.7722]
[1732398642574,2.92457,3419.3,3418.9,0.7994]
[1732398642980,0.05840192,3419.2,3418.9,0.7994]
[1732398643404,2.92449,3419.4,3418.9,0.7994]
[1732398643586,0.05836517,3419.1,3418.9,0.7994]
[1732398643746,3.70845,3419.7,3418.9,0.7994]
[1732398644380,2.92454,3419.4,3418.9,0.7994]
[1732398644880,0.05842814,3419.3,3418.9,0.7994]
[1732398645179,2.92459,3419.3,3418.9,0.7994]
[1732398645352,0.0583914,3419.2,3418.9,0.7994]
[1732398645673,0.7842,3419.7,3418.9,0.7994]
[1732398645976,2.92462,3419.3,3418.9,0.7994]
[1732398646143,2.92449,3419.4,3418.9,0.7994]
[1732398646480,0.05841762,3419.3,3418.9,0.7994]
[1732398647251,2.98298762,3419.3,3418.9,0.7994]
[1732398647449,2.9247,3419.2,3418.9,0.7994]
[1732398647689,0.05834412,3419.1,3418.9,0.7994]
[1732398648258,2.92483,3419.0,3418.6,0.7949]
[1732398648461,0.05827062,3418.9,3418.6,0.7949]
[1732398648970,2.98320062,3418.9,3418.6,0.7949]
[1732398649176,2.98320062,3418.9,3418.3,0.7949]
[1732398649357,2.98320062,3418.9,3418.3,1.06317697]
[1732398649959,2.92508,3418.7,3418.3,1.06317697]
[1732398650385,0.05812614,3418.6,3418.3,1.06317697]
[1732398650696,2.92505,3418.8,3418.3,1.06317697]
[1732398650988,0.05808938,3418.5,3418.3,1.06317697]
[1732398651189,2.92477,3419.1,3418.4,0.37166991]
[1732398651588,2.92477,3419.1,3418.3,0.7949]
[1732398651589,2.9252,3418.6,3418.2,2.0715556]
[1732398652090,2.92538,3418.4,3418.2,2.0715556]
[1732398652391,2.92581,3417.9,3417.7,0.7949]
[1732398653388,2.92585,3417.8,3417.5,2.0924609]
[1732398654383,2.92585,3417.8,3417.5,2.38309699]
[1732398654718,2.92574,3418.0,3417.6,2.0984627]
[1732398655221,0.05767575,3417.9,3417.6,2.0984627]
[1732398655579,2.98347575,3417.9,3417.6,2.0984627]
[1732398657882,0.05767575,3417.9,3417.6,2.0984627]
[1732398658083,2.9256,3418.1,3417.6,2.41876258]
[1732398658284,0.05771253,3418.0,3417.6,2.41876258]
[1732398658885,2.98340253,3418.0,3417.6,2.41876258]
[1732398659117,0.05771253,3418.0,3417.6,2.41876258]
[1732398659622,2.98340253,3418.0,3417.6,2.41876258]
[1732398659923,2.9258,3417.9,3417.6,2.41876258]
[1732398660085,2.92585,3417.8,3417.6,2.41876258]
[1732398660285,2.98340253,3418.0,3417.6,2.0984627]
[1732398660286,0.05759781,3417.7,3417.6,2.0984627]
[1732398660525,2.92569,3418.0,3417.6,2.0984627]
[1732398660698,0.05759781,3417.7,3417.6,2.0984627]
[1732398660920,2.92569,3418.0,3417.6,2.41876258]
[1732398661420,0.05767136,3417.9,3417.6,2.41876258]
[1732398662121,2.9256,3418.1,3417.6,2.41876258]
[1732398662432,0.05755647,3417.8,3417.6,2.41876258]
[1732398662720,3.0,3418.0,3417.6,2.41876258]
[1732398663015,0.0575197,3417.7,3417.6,2.41876258]
[1732398663183,2.9256,3418.1,3417.6,0.32029988]
[1732398663385,0.0575197,3417.7,3417.5,0.29063609]
[1732398663581,2.92568,3418.0,3417.4,0.8139]
[1732398664096,0.0575994,3417.9,3417.4,0.8139]
[1732398664705,2.92593,3417.8,3417.4,0.8139]
[1732398665022,2.98347584,3417.7,3417.4,0.8139]
[1732398665221,0.05752584,3417.7,3417.4,0.8139]
[1732398666102,0.7735,3418.0,3417.4,0.8139]
[1732398666303,2.92596,3417.7,3417.4,0.8139]
[1732398666502,0.05748204,3417.6,3417.4,0.8139]
[1732398666829,2.92587,3417.8,3417.4,0.8139]
[1732398666830,4.15660589,3417.8,3417.4,0.8139]
[1732398667012,0.05744526,3417.5,3417.1,0.59522627]
[1732398667195,1.23073589,3417.3,3417.2,2.0984627]
[1732398667402,4.15701589,3417.3,3417.2,2.0984627]
[1732398667600,1.28809089,3417.3,3417.2,2.0984627]
[1732398667802,4.21437089,3417.3,3417.2,2.0984627]
[1732398668718,2.983635,3417.3,3417.2,2.0984627]
[1732398671116,0.057355,3417.3,3417.2,2.0984627]
[1732398671327,2.92603,3417.6,3417.2,2.0984627]
[1732398671509,2.92628,3417.3,3417.2,2.0984627]
[1732398671829,2.98357704,3417.3,3417.2,2.0984627]
[1732398672598,2.98357704,3417.3,3416.7,0.7865]
[1732398673298,2.92641,3417.2,3416.7,0.7865]
[1732398673524,2.92655,3417.0,3416.7,0.7865]
[1732398673723,0.05709369,3416.9,3416.7,0.7865]
[1732398674123,0.05709369,3416.9,3416.4,0.55]
[1732398674340,0.05709369,3416.9,3416.5,0.8141]
[1732398674341,2.98379369,3416.9,3416.5,0.8141]
[1732398674995,0.05709369,3416.9,3416.5,0.8141]
[1732398675200,2.92672,3416.8,3416.5,0.8141]
[1732398675595,0.0570201,3416.7,3416.5,0.8141]
[1732398676030,2.92655,3417.0,3416.5,0.8141]
[1732398676205,0.05695958,3416.6,3416.5,0.8141]
[1732398676411,2.92678,3416.8,3416.5,0.8141]
[1732398676851,0.05699638,3416.7,3416.5,0.8141]
[1732398677012,0.05699638,3416.7,3416.5,0.97968]
[1732398677208,2.92672,3416.8,3416.5,0.97968]
[1732398677401,0.05695958,3416.6,3416.5,0.97968]
[1732398677602,2.92672,3416.8,3416.5,0.97968]
[1732398678104,0.05603216,3416.7,3416.5,0.97968]
[1732398678317,2.92672,3416.8,3416.5,0.97968]
[1732398678518,0.05603216,3416.7,3416.5,0.97968]
[1732398678815,2.92672,3416.8,3416.5,0.97968]
[1732398679013,0.05599536,3416.6,3416.5,0.97968]
[1732398679538,2.92672,3416.8,3416.5,0.97968]
[1732398679835,0.05599536,3416.6,3416.5,0.97968]
[1732398680046,2.92654,3417.0,3416.5,0.97968]
[1732398680539,0.05610576,3416.9,3416.5,0.97968]
[1732398680743,2.98274576,3416.9,3416.5,0.97968]
[1732398681043,0.05610576,3416.9,3416.8,1.3641]
[1732398681400,2.92655,3417.0,3416.8,1.3641]
[1732398681696,2.98272752,3416.9,3416.8,1.3641]
[1732398682311,2.98272752,3416.9,3416.8,0.8141]
[1732398683806,0.05610752,3416.9,3416.8,0.8141]
[1732398684119,2.92647,3417.1,3416.8,0.8141]
[1732398684444,2.98268694,3417.0,3416.8,0.8141]
[1732398685820,2.98268694,3417.0,3416.9,2.2131845]
[1732398697171,2.92692,3416.6,3416.4,0.8141]
[1732398697560,0.05594888,3416.5,3416.4,0.8141]
[1732398698193,2.98291888,3416.5,3416.4,0.8141]
[1732398698395,2.92748,3415.9,3415.8,0.7748]
[1732398698608,2.92767,3415.7,3415.1,0.7748]
[1732398698906,2.92793,3415.4,3415.2,2.02920421]
[1732398699103,0.05549389,3415.3,3415.2,2.02920421]
[1732398699392,2.98349389,3415.3,3415.2,2.02920421]
[1732398699939,2.98349389,3415.3,3415.1,0.7748]
[1732398700269,2.92808,3415.2,3415.1,0.7748]
[1732398700498,2.9835028,3415.2,3415.1,0.7748]
[1732398701615,0.0554228,3415.2,3415.1,0.7748]
[1732398701978,2.92792,3415.4,3415.1,0.7748]
[1732398702309,2.92779,3415.6,3415.1,0.7748]
[1732398702620,0.05546649,3415.5,3415.1,0.7748]
[1732398703107,0.05542967,3415.4,3415.1,0.7748]
[1732398703318,2.92775,3415.6,3415.1,0.7748]
[1732398703481,0.05546649,3415.5,3415.1,0.7748]
[1732398703992,2.92768,3415.7,3415.1,0.7748]
[1732398704171,0.05542967,3415.4,3415.1,0.7748]
[1732398704376,2.92776,3415.6,3415.1,0.7748]
[1732398704604,0.05539284,3415.3,3415.1,0.7748]
[1732398704814,2.92748,3415.9,3415.1,0.7748]
[1732398705016,0.055356,3415.2,3415.1,1.3248]
[1732398705183,2.92748,3415.9,3415.2,0.7748]
[1732398705529,0.05557696,3415.8,3415.2,0.7748]
[1732398705682,5.85428,3416.3,3415.2,0.7748]
[1732398705888,2.92749,3415.9,3415.2,0.7748]
[1732398706195,0.05557696,3415.8,3415.2,0.7748]
[1732398706803,2.92727,3416.2,3415.2,0.7748]
[1732398707093,2.92727,3416.2,3415.3,0.55]
[1732398707311,2.98299131,3416.1,3415.5,0.7748]
[1732398707508,0.05560131,3416.1,3415.5,0.7748]
[1732398707826,0.05560131,3416.1,3415.7,0.7748]
[1732398708320,2.92713,3416.4,3415.7,0.7748]
[1732398708527,0.05567494,3416.3,3415.7,0.7748]
[1732398708885,0.7704,3416.9,3415.9,0.8098]
[1732398709085,0.05585896,3416.8,3416.1,0.8098]
[1732398709409,2.92646,3417.1,3416.1,0.8098]
[1732398709611,0.05582216,3416.7,3416.1,0.8098]
[1732398709814,0.8051,3417.2,3416.1,0.8098]
[1732398710116,0.8051,3417.6,3416.5,0.8098]
[1732398710420,2.98199983,3417.5,3416.6,0.55]
[1732398710619,3.34287576,3417.5,3416.6,0.55]
[1732398712530,3.34287576,3417.5,3416.5,0.8098]
[1732398712531,0.41674576,3417.5,3416.5,0.02926276]
[1732398712824,0.05586983,3417.5,3416.8,0.8098]
[1732398712988,0.05586983,3417.5,3416.8,0.83906062]
[1732398713193,3.73088,3417.9,3416.8,0.8098]
[1732398713426,0.673088,3417.8,3416.8,0.8098]
[1732398713940,0.05608924,3417.7,3416.8,0.8098]
[1732398714232,0.05608924,3417.7,3416.8,1.38415944]
[1732398714615,2.98202924,3417.7,3416.8,1.38415944]
[1732398718136,0.05608924,3417.7,3416.8,1.38415944]
[1732398718327,2.92603,3417.6,3416.8,1.38415944]
[1732398718535,0.05615534,3417.5,3416.8,1.38415944]
[1732398718726,0.05615534,3417.5,3416.8,0.8098]
[1732398719040,2.92637,3417.2,3416.2,0.801]
[1732398719212,2.92647,3417.1,3416.2,1.38663399]
[1732398719418,2.92671,3416.8,3416.2,0.801]
[1732398719815,0.05586803,3416.7,3416.2,0.801]
[1732398720817,2.98267803,3416.7,3416.2,0.801]
[1732398721645,2.92692,3416.6,3416.2,0.801]
[1732398721942,0.05579443,3416.5,3416.2,0.801]
[1732398722116,2.92656,3417.0,3416.2,0.801]
[1732398722311,2.92672,3416.8,3416.2,0.801]
[1732398722514,0.05586803,3416.7,3416.2,0.801]
[1732398723456,2.98266803,3416.7,3416.2,0.801]
[1732398723918,0.05586803,3416.7,3416.2,0.801]
[1732398724127,2.92656,3417.0,3416.3,0.02926847]
[1732398724322,0.05594163,3416.9,3416.3,0.02926847]
[1732398724548,0.05594163,3416.9,3416.4,0.801]
[1732398724759,2.92617,3417.5,3416.5,0.55]
[1732398724905,0.05608079,3417.4,3416.6,0.801]
[1732398725242,3.69828,3417.9,3416.8,0.801]
[1732398725443,0.05604401,3417.3,3416.8,0.801]
[1732398725648,2.92603,3417.6,3416.9,0.16719623]
[1732398725849,0.05600722,3417.2,3416.9,0.16719623]
[1732398726010,2.92603,3417.6,3416.9,0.16719623]
[1732398726213,0.05597043,3417.1,3416.9,0.16719623]
[1732398726451,2.92597,3417.7,3417.0,0.18098962]
[1732398727325,2.92597,3417.7,3416.8,0.801]
[1732398729763,2.92577,3417.9,3416.9,2.00320421]
[1732398729989,3.0,3417.8,3417.0,0.34239793]
[1732398730159,3.05630522,3417.8,3416.9,2.83580421]
[1732398730364,3.05630522,3417.8,3417.1,2.00320421]
[1732398730784,2.92597,3417.7,3417.1,2.00320421]
[1732398731087,3.89080452,3417.6,3417.1,2.00320421]
[1732398731266,3.94703618,3417.6,3417.1,2.00320421]
[1732398731996,0.94703618,3417.6,3417.1,2.00320421]
[1732398732286,0.05623166,3417.6,3417.1,2.00320421]
[1732398732669,3.0,3417.7,3417.1,2.00320421]
[1732398732993,3.0,3417.7,3417.2,0.8326]
[1732398732994,0.05623869,3417.6,3417.2,0.8326]
[1732398733590,3.69816,3418.2,3417.2,0.8326]
[1732398733754,0.0562019,3417.5,3417.2,0.8326]
[1732398733960,3.7726,3418.2,3417.2,0.8326]
[1732398734183,0.05642256,3418.1,3417.2,0.8326]
[1732398734693,2.92568,3418.0,3417.2,0.8326]
[1732398735268,0.05634902,3417.9,3417.2,0.8326]
[1732398736761,0.05634902,3417.9,3417.2,1.11618042]
[1732398737094,2.92568,3418.0,3417.2,1.11618042]
[1732398737256,0.05631224,3417.8,3417.2,1.11618042]
[1732398737456,0.05634902,3417.9,3417.2,1.11618042]
[1732398737697,0.05627547,3417.7,3417.2,1.11618042]
[1732398737860,0.05627547,3417.7,3417.3,0.31193846]
[1732398738060,2.92568,3418.0,3417.2,0.8326]
[1732398738268,0.05623869,3417.6,3417.2,0.8326]
[1732398738483,2.92577,3417.9,3417.2,0.8326]
[1732398738681,0.0562098,3417.5,3417.2,0.8326]
[1732398738908,2.92577,3417.9,3417.2,0.8326]
[1732398739067,0.05617302,3417.4,3417.2,0.8326]
[1732398739463,2.92577,3417.9,3417.2,0.8326]
[1732398739700,0.05613623,3417.3,3417.2,0.8326]
[1732398739897,2.92577,3417.9,3417.2,1.11618042]
[1732398740196,2.92577,3417.9,3417.2,0.8326]
[1732398740498,0.05632629,3417.8,3417.2,0.8326]
[1732398744917,2.92594,3417.7,3417.2,0.8326]
[1732398745298,0.05624044,3417.6,3417.2,0.8326]
[1732398745604,0.05624044,3417.6,3417.1,2.00320421]
[1732398745605,2.92636,3417.3,3417.1,2.00320421]
[1732398745768,0.292636,3417.2,3417.1,2.00320421]
[1732398745971,0.05607486,3417.2,3417.1,2.00320421]
[1732398746300,2.92618,3417.5,3417.1,2.00320421]
[1732398746501,0.05607486,3417.2,3417.1,2.00320421]
[1732398746701,2.92621,3417.4,3417.1,2.00320421]
[1732398746875,0.05607486,3417.2,3417.1,2.00320421]
[1732398747081,2.92621,3417.4,3417.1,2.00320421]
[1732398747271,0.05607486,3417.2,3417.1,2.00320421]
[1732398747468,3.61550831,3417.4,3417.1,2.00320421]
[1732398747688,0.05607486,3417.2,3417.1,2.00320421]
[1732398747886,2.9263,3417.3,3417.1,2.00320421]
[1732398748205,0.05607486,3417.2,3417.1,2.00320421]
[1732398750176,2.98244486,3417.2,3417.1,2.00320421]
[1732398754076,2.96492595,3417.2,3417.1,2.00320421]
[1732398754404,2.92672,3416.8,3416.6,0.7786]
[1732398754710,0.05580392,3416.7,3416.6,0.7786]
[1732398755218,0.05579777,3416.7,3416.6,0.7786]
[1732398755573,2.92665,3416.9,3416.6,0.7786]
[1732398755917,2.9268,3416.7,3416.6,0.7786]
[1732398756254,2.9268,3416.7,3416.2,0.2917]
[1732398756255,2.92702,3416.5,3416.2,0.8332]
[1732398756420,2.98258899,3416.7,3416.2,0.8332]
[1732398756714,0.05567858,3416.4,3416.2,0.8332]
[1732398756879,2.92693,3416.6,3416.2,0.8332]
[1732398757081,0.05563386,3416.3,3416.2,0.8332]
[1732398757281,2.92693,3416.6,3416.2,0.8332]
[1732398757472,2.98277386,3416.3,3416.2,0.8332]
[1732398757676,2.98277386,3416.3,3415.7,0.8332]
[1732398757677,2.92722,3416.2,3415.7,0.8332]
[1732398757980,0.05554443,3416.1,3415.7,0.8332]
[1732398758820,2.98290443,3416.1,3415.7,0.8332]
[1732398759114,0.05554443,3416.1,3415.7,0.8332]
[1732398759878,2.98288443,3416.1,3415.7,0.8332]
[1732398760085,0.05554443,3416.1,3415.7,0.8332]
[1732398763689,2.92706,3416.4,3415.7,0.8332]
[1732398763903,0.05543383,3416.0,3415.7,0.8332]
[1732398764101,3.69014,3416.5,3415.7,0.8332]
[1732398764424,2.92708,3416.4,3415.7,0.8332]
[1732398764721,0.05558108,3416.4,3415.7,0.8332]
[1732398764922,2.92716,3416.3,3415.7,0.8332]
[1732398765283,0.05550746,3416.2,3415.7,0.8332]
[1732398766002,2.92715,3416.3,3415.7,0.8332]
[1732398766202,0.05550746,3416.2,3415.7,0.8332]
[1732398766788,2.98276746,3416.2,3415.7,0.8332]
[1732398767648,0.05550746,3416.2,3415.7,0.8332]
[1732398767853,2.92707,3416.4,3415.7,0.8332]
[1732398768015,0.05547065,3416.1,3415.7,0.8332]
[1732398768215,2.92707,3416.4,3415.7,0.8332]
[1732398768415,0.05554427,3416.3,3415.7,0.8332]
[1732398769249,2.92705,3416.4,3415.7,0.8332]
[1732398769546,0.05550746,3416.2,3415.7,0.8332]
[1732398769851,2.92694,3416.6,3415.7,0.8332]
[1732398770050,0.05547065,3416.1,3415.7,0.8332]
[1732398770240,2.92703,3416.5,3415.7,0.8332]
[1732398770447,0.05543383,3416.0,3415.7,0.8332]
[1732398770624,2.92673,3416.8,3415.8,0.55]
[1732398770829,2.92673,3416.8,3416.0,0.55]
[1732398771732,2.92665,3416.9,3416.0,0.55]
[1732398771935,2.92665,3416.9,3416.1,0.7654]
[1732398772452,3.75481,3417.0,3416.1,0.7654]
[1732398772618,3.8282,3417.0,3416.1,0.7654]
[1732398772819,2.92663,3416.9,3416.1,0.7654]
[1732398774357,3.0,3417.1,3416.1,0.7654]
[1732398774651,3.0,3417.2,3416.3,0.8177]
[1732398774858,0.8302,3417.3,3416.5,0.8177]
[1732398775072,0.05588612,3417.1,3416.5,0.8177]
[1732398775371,0.05588612,3417.1,3416.7,0.8177]
[1732398775668,0.05584933,3417.0,3416.7,0.8177]
[1732398775831,2.92605,3417.6,3416.7,0.8177]
[1732398776031,0.05603327,3417.5,3416.7,0.8177]
[1732398776846,2.92602,3417.6,3416.7,0.8177]
[1732398777156,0.05599649,3417.4,3416.7,0.8177]
[1732398777355,0.05603327,3417.5,3416.7,0.8177]
[1732398777557,0.0559597,3417.3,3416.7,0.8177]
[1732398777767,0.05599649,3417.4,3416.7,1.01178509]
[1732398777971,0.05592291,3417.2,3416.7,1.01178509]
[1732398778279,3.0,3417.5,3416.7,1.01178509]
[1732398778560,0.05588612,3417.1,3416.7,1.01178509]
[1732398778790,3.0,3417.5,3416.7,1.01178509]
[1732398778926,0.05584933,3417.0,3416.7,1.01178509]
[1732398779131,3.0,3417.5,3416.7,1.01178509]
[1732398779331,0.05581253,3416.9,3416.7,1.01178509]
[1732398779760,5.92595,3417.7,3416.7,1.01178509]
[1732398780028,0.05607005,3417.6,3416.7,1.01178509]
[1732398780636,0.05607005,3417.6,3416.9,0.2919]
[1732398780832,2.06075596,3418.2,3417.0,0.8177]
[1732398781037,0.05629697,3418.1,3417.2,0.8177]
[1732398781290,0.05629697,3418.1,3417.4,0.8177]
[1732398784094,3.05629697,3418.1,3417.4,0.8177]
[1732398784459,0.05629697,3418.1,3417.4,0.8177]
[1732398784667,0.05629697,3418.1,3417.4,0.98290221]
[1732398784956,3.8302,3418.4,3417.4,0.98290221]
[1732398785158,0.05641916,3418.0,3417.5,0.02925708]
[1732398785353,3.8302,3418.4,3417.6,0.8177]
[1732398785571,0.05638239,3417.9,3417.6,0.8177]
[1732398785887,0.05634561,3417.8,3417.6,0.8177]
[1732398786188,3.0,3418.6,3417.7,0.84695587]
[1732398786364,3.0,3418.7,3417.7,0.84695587]
[1732398786561,3.0,3418.9,3417.7,0.84695587]
[1732398786772,3.0,3418.9,3417.7,0.8177]
[1732398787172,5.92493,3418.9,3417.7,0.8177]
[1732398787350,2.92485,3419.0,3417.8,0.8177]
[1732398788395,2.92474,3419.1,3417.8,0.8177]
[1732398788686,2.925,3418.8,3417.8,0.8177]
[1732398790098,0.05672392,3418.7,3417.8,0.8177]
[1732398790264,3.0,3418.9,3417.8,0.8177]
[1732398790464,0.05669155,3418.6,3417.8,0.8177]
[1732398790665,0.05676506,3418.8,3417.8,0.8177]
[1732398790868,3.0,3418.9,3417.8,0.8177]
[1732398791094,0.05672918,3418.7,3418.0,0.8257]
[1732398791270,2.98178594,3418.8,3418.0,0.8257]
[1732398791486,0.05669242,3418.6,3418.0,0.8257]
[1732398791688,2.92502,3418.8,3418.0,0.8257]
[1732398792005,0.05665566,3418.5,3418.0,0.8257]
[1732398792187,2.92529,3418.5,3418.0,0.8257]
[1732398792365,0.0566189,3418.4,3418.0,0.8257]
[1732398792566,2.9819689,3418.4,3418.0,0.8257]
[1732398792765,2.92535,3418.4,3418.0,0.8257]
[1732398792966,0.05658389,3418.3,3418.0,0.8257]
[1732398793287,2.92508,3418.7,3418.0,0.8257]
[1732398793490,2.92491,3418.9,3418.0,0.8257]
[1732398793491,0.05654712,3418.2,3418.0,0.8257]
[1732398793686,2.92491,3418.9,3418.0,0.8257]
[1732398793888,3.0,3418.9,3418.0,0.8257]
[1732398794083,0.05675102,3418.8,3418.0,0.8257]
[1732398795612,2.92483,3419.0,3418.0,0.8257]
[1732398795901,0.05678777,3418.9,3418.0,0.8257]
[1732398797010,0.05678777,3418.9,3418.1,0.80755102]
[1732398797380,2.92441,3419.5,3418.1,0.80755102]
[1732398797871,0.05712332,3419.4,3418.1,0.80755102]
[1732398798204,2.98162332,3419.4,3418.1,0.80755102]
[1732398798616,5.92464,3419.3,3418.1,0.80755102]
[1732398798779,2.92488,3419.0,3418.1,0.80755102]
[1732398798984,2.98178439,3419.2,3418.1,0.7783]
[1732398799197,0.05696414,3418.9,3418.1,0.7783]
[1732398799410,0.05703589,3419.1,3418.1,0.7783]
[1732398799624,0.05692563,3418.8,3418.1,0.7783]
[1732398799786,0.05699914,3419.0,3418.1,0.7783]
[1732398800115,2.9247,3419.2,3418.1,0.7783]
[1732398800279,0.05696239,3418.9,3418.1,0.7783]
[1732398800609,0.8175,3419.0,3418.1,0.7783]
[1732398800813,2.92509,3418.7,3418.1,0.7783]
[1732398801342,3.05685387,3418.6,3418.1,0.7783]
[1732398803185,0.05685387,3418.6,3418.1,0.7783]
[1732398803708,3.0,3418.8,3418.1,0.7783]
[1732398803709,0.05681711,3418.5,3418.1,0.7783]
[1732398803894,2.925,3418.8,3418.1,0.7783]
[1732398804100,0.05678035,3418.4,3418.1,0.7783]
[1732398804310,3.0,3418.1,3417.3,0.7783]
[1732398804511,2.92602,3417.7,3417.3,0.7783]
[1732398804679,5.98219358,3418.3,3417.3,0.7783]
[1732398804680,2.92603,3417.6,3417.3,0.7783]
[1732398804882,3.05644932,3417.6,3417.3,0.7783]
[1732398805309,0.05644932,3417.6,3417.3,0.7783]
[1732398805840,2.92617,3417.5,3417.3,0.7783]
[1732398806039,0.05634855,3417.4,3417.3,0.7783]
[1732398806397,2.98254855,3417.4,3417.0,1.35774448]
[1732398806705,2.92628,3417.3,3417.0,1.35774448]
[1732398806911,2.92628,3417.3,3417.0,0.7783]
[1732398807107,0.05621617,3417.2,3417.0,0.7783]
[1732398807511,2.92613,3417.5,3417.0,0.7783]
[1732398807715,0.05617938,3417.1,3417.0,0.7783]
[1732398807903,2.92636,3417.3,3417.0,0.7783]
[1732398808124,0.05617938,3417.1,3417.0,0.7783]
[1732398808634,0.05617938,3417.1,3416.2,0.755]
[1732398808863,2.98270938,3417.1,3416.4,0.755]
[1732398810531,2.98270938,3417.1,3416.5,0.59619107]
[1732398812555,2.92655,3417.0,3416.5,0.59619107]
[1732398812738,0.05617938,3417.1,3416.4,0.755]
[1732398813050,0.05593805,3417.0,3416.4,0.755]
[1732398813651,2.98248805,3417.0,3416.4,0.755]
[1732398815915,0.05593805,3417.0,3416.4,0.755]
[1732398816392,2.92643,3417.2,3416.4,0.755]
[1732398816653,2.92655,3417.0,3416.4,0.755]
[1732398816828,0.05589775,3416.9,3416.4,0.755]
[1732398817951,2.98253775,3416.9,3416.4,0.755]
[1732398818159,2.92664,3416.9,3416.4,0.755]
[1732398818357,0.05587236,3416.8,3416.4,0.755]
[1732398819248,2.92651,3417.1,3416.4,0.755]
[1732398819489,0.05593893,3417.0,3416.4,0.755]
[1732398820269,2.92655,3417.0,3416.4,0.755]
[1732398820471,2.92679,3416.8,3416.4,0.755]
[1732398820685,2.98262678,3416.7,3416.4,0.755]
[1732398821947,0.05582678,3416.7,3416.4,0.755]
[1732398822379,2.92677,3416.8,3416.4,0.755]
[1732398822565,0.05578647,3416.6,3416.4,0.755]
[1732398822772,2.92651,3417.1,3416.4,0.755]
[1732398822971,2.92637,3417.2,3416.4,0.755]
[1732398823149,2.98244853,3417.0,3416.4,0.755]
[1732398823348,2.92655,3417.0,3416.4,0.755]
[1732398823588,0.05585822,3416.9,3416.4,0.755]
[1732398825250,2.92637,3417.2,3416.4,0.755]
[1732398825453,2.92657,3417.0,3416.4,0.755]
[1732398825761,0.05585822,3416.9,3416.4,0.755]
[1732398827042,2.92656,3417.0,3416.4,0.755]
[1732398827388,2.98251822,3416.9,3416.4,0.755]
[1732398830706,4.21394129,3416.9,3416.4,0.755]
[1732398832200,1.28728129,3416.9,3416.4,0.755]
[1732398832492,2.92672,3416.8,3416.4,0.755]
[1732398832696,0.05579604,3416.7,3416.4,0.755]
[1732398833061,1.23142307,3416.9,3416.4,0.755]
[1732398833264,0.05583284,3416.8,3416.4,0.755]
[1732398834104,2.92683,3416.7,3416.4,0.755]
[1732398834475,0.05575924,3416.6,3416.4,0.755]
[1732398836207,2.92672,3416.8,3416.4,0.755]
[1732398836373,0.0557198,3416.5,3416.4,0.755]
[1732398836579,2.92672,3416.8,3416.4,0.755]
[1732398836782,0.0557198,3416.5,3416.4,0.755]
[1732398837306,2.92672,3416.8,3416.4,0.755]
[1732398837490,0.0557198,3416.5,3416.4,0.755]
[1732398837667,2.92672,3416.8,3416.4,0.755]
[1732398837871,2.98265341,3416.7,3416.4,0.755]
[1732398838113,0.05579341,3416.7,3416.4,0.755]
[1732398838402,2.92691,3416.6,3416.4,0.755]
[1732398838610,2.92697,3416.5,3416.2,0.7529]
[1732398838768,2.9826898,3416.5,3416.2,0.7529]
[1732398839286,0.0557198,3416.5,3416.2,0.7529]
[1732398841591,2.92665,3416.9,3416.2,0.7529]
[1732398841908,3.0,3416.8,3416.2,0.7529]
[1732398842069,0.05583021,3416.8,3416.2,0.7529]
[1732398843936,4.15823307,3416.7,3416.2,0.7529]
[1732398844113,4.21402648,3416.7,3416.2,0.7529]
[1732398844443,2.92693,3416.6,3416.2,0.7529]
[1732398844802,0.05484489,3416.5,3416.2,0.7529]
[1732398845195,0.05484489,3416.5,3416.2,0.78217041]
[1732398845434,0.05484489,3416.5,3416.2,0.7529]
[1732398845639,2.92666,3416.9,3416.2,0.7529]
[1732398845799,0.05480018,3416.4,3416.2,0.7529]
[1732398846135,0.05476337,3416.3,3416.2,0.7529]
[1732398846509,2.92666,3416.9,3416.2,0.7529]
[1732398846706,0.05476337,3416.3,3416.2,0.7529]
[1732398846930,2.92666,3416.9,3416.2,0.7529]
[1732398847131,0.05476337,3416.3,3416.2,0.7529]
[1732398847307,2.92666,3416.9,3416.2,0.7529]
[1732398847503,0.05446999,3416.3,3416.2,0.7529]
[1732398847839,2.92666,3416.9,3416.2,0.7529]
[1732398848002,0.05447436,3416.3,3416.2,0.7529]
[1732398848205,4.15796307,3417.0,3416.2,0.7529]
[1732398848714,0.05469517,3416.9,3416.2,0.7529]
[1732398849644,0.05469517,3416.9,3416.3,0.8243]
[1732398849947,1.23142307,3417.3,3416.3,0.8243]
[1732398850103,0.05465838,3416.8,3416.3,0.8243]
[1732398850317,1.23142307,3417.3,3416.3,0.8243]
[1732398850516,0.05462158,3416.7,3416.3,0.8243]
[1732398850748,1.23142307,3417.3,3416.3,0.8243]
[1732398850947,0.05458477,3416.6,3416.3,0.8243]
[1732398851154,1.23142307,3417.3,3416.3,0.8243]
[1732398851615,0.05480555,3417.2,3416.3,0.8243]
[1732398852654,2.98117555,3417.2,3416.3,0.8243]
[1732398853842,2.92645,3417.1,3416.3,0.8243]
[1732398854148,4.21100611,3417.0,3416.3,0.8243]
[1732398854350,1.28445611,3417.0,3416.3,0.8243]
[1732398854837,0.05303304,3417.0,3416.3,0.8243]
[1732398855450,1.23142307,3417.3,3416.3,0.8243]
[1732398855761,0.7977,3417.4,3416.3,0.8243]
[1732398855920,0.05142061,3417.2,3416.5,0.7873]
[1732398856118,0.7977,3417.7,3416.7,0.7873]
[1732398856330,2.02912307,3417.7,3416.9,0.7873]
[1732398856557,0.04834187,3417.6,3416.9,0.7873]
[1732398857778,0.04834187,3417.6,3417.1,0.59662782]
[1732398858881,0.04834187,3417.6,3417.2,0.00389934]
[1732398861597,0.04834187,3417.6,3417.3,0.8223]
[1732398873504,3.0,3418.4,3417.3,0.8223]
[1732398873661,0.04712313,3418.3,3417.6,0.7525]
[1732398873862,0.04712313,3418.3,3417.8,0.7525]
[1732398874055,0.7503,3419.0,3417.9,0.0292518]
[1732398874295,0.7503,3419.0,3417.9,0.7525]